Cogmind - Beta 16 --- EXPLORER MODE // 2025.12.15 @ 13:24:06 Player: K.K.Y. Result: Destroyed by exploding Fusion Modulator Performance ------------- Evolutions (4) 2000 Regions Visited (8) 1600 Robots Destroyed (157) 785 Value Destroyed (5747) 5747 Prototype IDs (26) 520 Alien Tech Used (0) 0 Bonus (230) 230 TOTAL SCORE: 10882 Bonus ------- Follower Combat Kills 245 Friendly Fire -15 Cogmind --------- Core Integrity 0/850 Matter 277/300 Energy 568/570 System Corruption 4% Temperature Cool (29) Movement Flying (23) Location -6/Factory Parts ------- > --- POWER (2) -------- F-cell Engine Light Antimatter Reactor > --- PROPULSION (5) --- Cooled VTOL Module Nuclear Pulse Thruster Improved Surge Thruster Cooled Cesium-ion Thruster Cooled Cesium-ion Thruster > --- UTILITY (6) ------ Advanced Heat Sink Advanced Weight Redist. System Machine Analyzer Advanced Sensor Array Advanced Signal Interpreter > --- WEAPON (3) ------- Variable Charge Gun > --- INVENTORY (5) ---- Huge Storage Unit IFF Parser System Shield System Guard Heavy Flail Peak State ------------ > --- POWER ------------ Light Angular Momentum Engine Light Angular Momentum Engine > --- PROPULSION ------- Xenon Bombardment Thruster Xenon Bombardment Thruster Improved Surge Thruster Cooled Cesium-ion Thruster Cooled Cesium-ion Thruster > --- UTILITY ---------- Advanced Heat Sink Huge Storage Unit Improved Armor Integrity Analyzer Hacking Suite Advanced Hacking Suite System Shield > --- WEAPON ----------- Disruptor Cannon Plasma Cannon Compact Ion Cannon > --- INVENTORY -------- Antimatter Reactor Heavy Treads Heavy Treads Heavy Treads Improved Heavy Treads Cesium-ion Thruster Cooled Cesium-ion Thruster Advanced Weight Redist. System Damper Plating Advanced Force Field Dynamic Insulation System Gauss Cannon Hardcell Cannon Improved Remote Datajack Plasma Cutter [Rating: 88] Favorites ----------- Power Makeshift Power Source Engine Makeshift Power Source Power Core Fission Core Reactor Light Antimatter Reactor Propulsion Flight Unit Treads Improved Medium Treads Wheel Wheel Hover Unit Improved Gravmag System Flight Unit Flight Unit Utility Small Storage Unit Device Structural Scanner Storage Small Storage Unit Processor Advanced Terrain Scan Processor Hackware System Shield Protection Layered Medium Armor Plating Weapon Powered Cannon Energy Gun Force Rifle Energy Cannon Powered Cannon Ballistic Gun Assault Rifle Ballistic Cannon Gauss Cannon Launcher Proton Missile Launcher Special Weapon Mining Laser Impact Weapon Heavy Flail Slashing Weapon Chainsword Build | -11 -10 -10 -10 -8 -8 -6 -6 -6 ------- Run | Yrd Mat Min Sub Rec Scr Fac Was Fac Slots Evolved 9 | . 1 . . . . 8 . . Power 1 | . . . . . . 1 . . Propulsion 3 | . 1 . . . . 2 . . Utility 4 | . . . . . . 4 . . Weapon 1 | . . . . . . 1 . . Parts Attached 163 | 7 5 9 10 4 . 89 11 28 Power 27 | 1 . 2 2 1 . 15 1 5 Engine 16 | 1 . 1 2 1 . 8 . 3 Core 8 | . . 1 . . . 6 . 1 Reactor 3 | . . . . . . 1 1 1 Propulsion 49 | 2 2 4 3 1 . 25 5 7 Treads 4 | . . . . . . 3 1 . Leg . | . . . . . . . . . Wheel 4 | 2 2 . . . . . . . Hover 11 | . . . . . . 11 . . Flight 30 | . . 4 3 1 . 11 4 7 Utility 47 | 2 2 2 2 2 . 22 3 12 Device 31 | . 1 1 1 1 . 16 1 10 Storage 5 | 1 1 1 1 1 . . . . Processor 6 | 1 . . . . . 2 1 2 Hackware 4 | . . . . . . 3 1 . Protection 1 | . . . . . . 1 . . Artifact . | . . . . . . . . . Weapon 40 | 2 1 1 3 . . 27 2 4 Energy Gun 9 | . . . . . . 7 . 2 Energy Cannon 9 | . . . 1 . . 8 . . Ballistic Gun 15 | 2 1 1 1 . . 9 . 1 Ballistic Cannon 1 | . . . . . . . 1 . Launcher 1 | . . . . . . . 1 . Special Weapon 2 | . . . 1 . . 1 . . Impact Weapon 1 | . . . . . . . . 1 Slashing Weapon 2 | . . . . . . 2 . . Piercing Weapon . | . . . . . . . . . Special Melee Weapon . | . . . . . . . . . Unidentified Prototypes 14 | . . . . . . 10 1 3 Parts Lost 62 | . . 3 1 2 . 40 8 8 Power 8 | . . . . . . 6 1 1 Propulsion 24 | . . 3 1 2 . 13 2 3 Utility 15 | . . . . . . 11 2 2 Weapon 15 | . . . . . . 10 3 2 Highest Loss Streak 8 | . . 2 1 2 . 5 8 6 To Critical Strikes 1 | . . . . . . 1 . . Average Backups 6 | 1 4 7 7 6 7 7 8 4 Power . | . . . 1 . . . . . Propulsion 1 | . 1 2 2 1 . 1 2 . Utility 3 | . 2 3 3 4 4 2 1 2 Weapon 1 | . 1 1 . . . 1 1 . Tool/Special . | . . . . . . . . . Unused Backups 24 | . 3 . 3 . 2 2 7 7 Power 2 | . . . . . 1 . 1 . Propulsion 6 | . 2 . 1 . . . 1 2 Utility 10 | . . . 2 . 1 . 3 4 Weapon 5 | . 1 . . . . 2 1 1 Tool/Special 1 | . . . . . . . 1 . Average Slot Usage (%) 87 | . 98 98 88 86 88 84 88 79 Engine 11 | . 11 11 19 18 11 6 11 6 Core 2 | . . . . 2 11 4 . 2 Treads 1 | . . . . . . 3 . . Wheel 3 | . 35 13 . . . . . . Hover 2 | . . . . . . 7 . . Flight 22 | . . 22 33 32 33 12 24 28 Device 14 | . 7 12 11 10 11 17 12 22 Storage 7 | . 12 12 11 11 11 4 2 . Processor 2 | . 4 . . . . 4 1 11 Hackware 2 | . . . . . . 4 15 . Energy Gun 1 | . . . . . . 3 . 4 Energy Cannon 6 | . . . 9 11 11 5 16 . Ballistic Gun 5 | . 25 25 3 . . 4 . 2 Peak Build Rating 88 | 7 9 10 29 29 28 86 88 74 Average Rating 42 | 4 8 8 24 27 27 64 70 62 On Entrance 19 | . 7 9 9 28 28 28 58 11 Avg Prop Armor Cover (%) 4 | . . . . . . 4 . . Naked Turns 1 | . . . . . . . 1 . Heaviest Build 119 | 12 13 12 23 28 24 55 119 34 Greatest Support 70 | 20 30 30 18 12 12 69 70 38 Greatest Overweight (x) 3 | 1 3 1 1 2 1 2 3 1 Average Overweight (x) . | . . . . 1 1 . 1 . Largest Inventory Capacity 25 | 8 8 8 25 8 8 25 25 5 Average Capacity 7 | 5 8 8 8 8 8 7 14 5 Most Carried 23 | 3 8 8 8 8 8 8 23 5 Average Carried 7 | 1 5 7 7 7 7 7 11 4 Final Capacity 8 | 8 8 8 8 8 8 5 5 5 Final Carried 8 | 2 8 7 8 8 8 5 4 5 Class Distribution -------------------- 32% | Scavenger-Mutant 14% | Commander-Mutant 12% | Hacker-Mutant 12% | Hacker-Skirmisher 8% | Hacker-Gunner 6% | Hacker-Tank 5% | Hacker-Scout Dominant Class ---------------- Hacker-Mutant | -10/Materials Scavenger-Mutant | -10/Mines Scavenger-Mutant | -10/Subcaves Scavenger-Mutant | -8/Recycling Commander-Mutant | -8/Scraptown Hacker-Skirmisher | -6/Factory Hacker-Gunner | -6/Waste Hacker-Scout | -6/Factory Resources | -11 -10 -10 -10 -8 -8 -6 -6 -6 ----------- Run | Yrd Mat Min Sub Rec Scr Fac Was Fac Matter Collected 4107 | 306 284 244 287 74 26 2142 177 567 Remotely . | . . . . . . . . . Salvage Created 8462 | 166 418 351 320 922 . 5676 . 609 Parts 391 | 17 31 19 23 25 . 253 . 23 Haulers Intercepted 9 | . 2 . . . . 6 . 1 Recyclers Shooed 7 | . 2 2 . . . 3 . . Parts Field Recycled . | . . . . . . . . . Retrieved Matter . | . . . . . . . . . Parts Self-Destructed . | . . . . . . . . . Prevented . | . . . . . . . . . Parts Restored . | . . . . . . . . . Kills | -11 -10 -10 -10 -8 -8 -6 -6 -6 ------- Run | Yrd Mat Min Sub Rec Scr Fac Was Fac Combat Hostiles Destroyed 114 | . 6 7 7 10 . 73 . 11 Melee 1 | . . . . . . 1 . . Guns 64 | . 6 7 5 . . 35 . 11 Cannons 40 | . . . 2 8 . 30 . . Classes Destroyed 17 | 2 4 2 2 4 . 3 . . Worker 7 | . 1 1 . . . 4 . 1 Builder 3 | . . 2 . . . 1 . . Tunneler 5 | 5 . . . . . . . . Hauler 9 | . 2 . . . . 6 . 1 Recycler 11 | 1 2 . . 4 . 4 . . Turret 2 | . . . 2 . . . . . Watcher 6 | . 3 . . . . 3 . . Swarmer 21 | . 6 2 2 . . 7 . 4 Grunt 42 | . . 5 . 1 . 33 . 3 Brawler 4 | . . . . 1 . 3 . . Duelist 4 | . . . . 1 . 2 . 1 Protector 1 | . . . . 1 . . . . Sentry 16 | . . . . 6 . 9 . 1 Hunter 7 | . . . . . . 7 . . Programmer 13 | . . . . . . 11 . 2 Behemoth 1 | . . . . . . 1 . . Subdweller 5 | . . . 5 . . . . . Best Kill Streak 7 | 4 2 3 3 4 . 7 . 2 Combat Bots Only 7 | . 2 2 3 4 . 7 . 2 Max Kills in Single Turn 2 | 2 2 1 1 1 . 2 . 1 Gunslinging 1 | . 1 . . . . . . . Exploded . | . . . . . . . . . Melee 1 | . . . . . . 1 . . Uniques/NPCs Destroyed . | . . . . . . . . . Combat | -11 -10 -10 -10 -8 -8 -6 -6 -6 -------- Run | Yrd Mat Min Sub Rec Scr Fac Was Fac Hostile Shots Fired 967 | . 13 46 36 38 . 684 6 144 Missed 316 | . 7 11 18 5 . 221 . 54 Hits 651 | . 6 35 18 33 . 463 6 90 Melee 18 | . . . . 1 . 7 6 4 Projectile 633 | . 6 35 18 32 . 456 . 86 AOE 4 | . . . . . . 3 . 1 Critical Strikes 18 | . . . . 2 . 11 2 3 Part Disruptions 1 | . . . . . . 1 . . Damage Taken 6518 | . 25 294 272 329 . 4321 155 1122 Core 1117 | . . 61 38 124 . 618 78 198 Absorbed by Shields 12 | . . . . . . 12 . . Ignored by Resistances 4052 | . 20 179 130 193 . 2782 87 661 Regen/Repaired (Parts) 248 | . . . . . . 21 . 227 Core Remaining (%) 55 | 100 . . . . 10 . . . Volleys Fired 499 | 6 29 38 56 35 . 261 11 63 Largest 3 | 2 2 2 2 1 . 3 3 2 Hottest 251 | 40 40 40 120 40 . 234 251 225 Shots Fired 878 | 12 58 76 87 35 . 497 20 93 Gun 622 | 12 58 76 48 . . 335 . 93 Cannon 244 | . . . 29 35 . 161 19 . Launcher 1 | . . . . . . . 1 . Special 11 | . . . 10 . . 1 . . Kinetic 478 | 12 58 76 48 . . 232 2 50 Thermal 309 | . . . 39 35 . 215 12 8 Explosive . | . . . . . . . . . Electromagnetic 91 | . . . . . . 50 6 35 Robot Hit Streak 54 | 6 11 15 27 21 . 38 17 54 Robot Miss Streak 5 | 1 2 2 2 1 . 2 1 5 Penetration Max 2 | . . . . . . 2 . . Secondary Targets 12 | . 1 1 2 . . 6 . 2 Max Gunslinging Chain 1 | . 1 1 1 . . 1 . 1 Shots Hit Robots 691 | 9 44 62 46 31 . 412 18 69 Core Hits 285 | 7 20 24 14 13 . 181 4 22 Critical Kills 21 | . . . . 2 . 19 . . Critical Parts Destroyed 19 | . . 1 . . . 18 . . Critical Strikes 45 | . . 1 1 2 . 41 . . Burn 3 | . . . . . . 3 . . Meltdown 7 | . . . . 2 . 5 . . Destroy 34 | . . 1 1 . . 32 . . Sever 1 | . . . . . . 1 . . Melee Attacks 4 | . . . . . . 4 . . Impact . | . . . . . . . . . Slashing 4 | . . . . . . 4 . . Piercing . | . . . . . . . . . Sneak Attacks . | . . . . . . . . . Combat Hostiles . | . . . . . . . . . Follow-up Attacks . | . . . . . . . . . Damage Inflicted 15117 | 128 586 663 835 1700 . 9340 358 1507 Guns 7905 | 128 586 647 280 . . 4780 . 1484 Cannons 7031 | . . . 553 1682 . 4440 356 . Explosions 2 | . . . . . . . 2 . Melee 115 | . . . . . . 115 . . Ramming 64 | . . 16 2 18 . 5 . 23 Kinetic 5548 | 128 586 647 280 . . 3103 57 747 Thermal 8008 | . . . 553 1682 . 5329 295 149 Explosive . | . . . . . . . . . Electromagnetic 1382 | . . . . . . 788 6 588 Impact . | . . . . . . . . . Slashing 115 | . . . . . . 115 . . Piercing . | . . . . . . . . . Highest Corruption 8 | . . 2 2 2 . 8 1 4 Average Corruption 2 | . . 2 2 2 . 4 1 2 Corruption Purged 8 | . . . . . . 8 . . Corruption Blocked . | . . . . . . . . . Effects 132 | . . 3 36 22 . 44 6 21 Message Errors 37 | . . 2 7 8 . 12 2 6 Matter Fused 35 | . . 1 12 4 . 8 1 9 Heat Flow Errors 14 | . . . 6 1 . 5 1 1 Energy Discharges 17 | . . . 5 4 . 6 . 2 Data Loss (minor) 16 | . . . 3 4 . 6 1 2 Data Loss (major) 3 | . . . 1 1 . 1 . . Misfires 6 | . . . 2 . . 2 1 1 Alerts 2 | . . . . . . 2 . . Weapon Failures 2 | . . . . . . 2 . . Overload Shots 6 | . . . . . . . . 6 Overflow Damage 342 | . . . 55 155 . 132 . . Projectiles 342 | . . . 55 155 . 132 . . Explosions . | . . . . . . . . . Melee . | . . . . . . . . . Knockbacks . | . . . . . . . . . Impact . | . . . . . . . . . Kinetic . | . . . . . . . . . Secondary . | . . . . . . . . . Self-Inflicted Damage 31 | . . 8 1 8 . 3 . 11 Shots 1 | . . . . . . 1 . . Rammed 7 | . . 1 1 2 . 2 . 1 Targets Rammed 7 | . . 1 1 2 . 2 . 1 Kicked . | . . . . . . . . . Crushed . | . . . . . . . . . Highest Temperature 492 | . . 26 287 299 . 466 492 456 Average Temperature 133 | . . 10 67 145 . 150 207 88 Received Heat Transfer 2163 | . . 258 108 144 . 1530 . 123 Effects 35 | . . . . 11 . 19 . 5 Shutdowns 10 | . . . . . . 10 . . Energy Bleed 7 | . . . . 5 . 1 . 1 Interference 10 | . . . . 6 . 1 . 3 Matter Decay 2 | . . . . . . 1 . 1 Short Circuit 1 | . . . . . . 1 . . Damage (minor) 3 | . . . . . . 3 . . Damage (major) 2 | . . . . . . 2 . . Siege Activations . | . . . . . . . . . Martial Activations . | . . . . . . . . . Shielding Activations . | . . . . . . . . . Robots Disrupted 3 | . . . . . . 1 1 1 Combat Hostiles 3 | . . . . . . 1 1 1 Robots Corrupted 1 | . . . . . . 1 . . Combat Hostiles 1 | . . . . . . 1 . . Parts Fried 5 | . . . . . . 1 . 4 Impact Corruptions . | . . . . . . . . . Robots Melted 8 | . . . . 2 . 6 . . Combat Hostiles 8 | . . . . 2 . 6 . . Parts Melted 31 | . . . 1 2 . 28 . . Heat Transferred 6819 | . . . . . . 6173 459 187 Parts Sabotaged . | . . . . . . . . . Parts Stolen . | . . . . . . . . . Parts Stripped . | . . . . . . . . . Power Chain Reactions . | . . . . . . . . . Alert | -11 -10 -10 -10 -8 -8 -6 -6 -6 ------- Run | Yrd Mat Min Sub Rec Scr Fac Was Fac Maximum Alert Level . | . . . . . . . . . Low Security (%) 100 | 100 100 100 . 100 . 100 100 100 Level 1 . | . . . . . . . . . Level 2 . | . . . . . . . . . Level 3 . | . . . . . . . . . Level 4 . | . . . . . . . . . Level 5 . | . . . . . . . . . High Security . | . . . . . . . . . Max Security . | . . . . . . . . . Peak Influence 151 | 10 50 77 . 78 . 151 . 80 Initial 2 | . 2 . . . . . . . Average 13 | 2 4 18 . 3 . 20 . 16 Influence Increases 3872 | 30 200 268 125 269 . 2312 . 668 Destroy 0b10 Robot/C 2340 | . 120 200 80 200 . 1520 . 220 Destroy 0b10 Robot/NC 230 | 30 40 15 . 45 . 90 . 10 Destroy Leader 588 | . 40 50 . . . 436 . 62 Allied During Kill 33 | . . 3 . 11 . 19 . . Successful Hack 277 | . . . . 11 . 118 . 148 Disable Machine 32 | . . . . . . 32 . . Destroy Structure 42 | . . . . 2 . 37 . 3 Partial Spotted 90 | . . . . . . . . 90 Lose Combat Pursuer 240 | . . . 45 . . 60 . 135 Influence Decreases 3872 | 25 205 268 125 269 . 2312 . 668 Entered New Map 3 | . 3 . . . . . . . Time Decay 3349 | 25 202 243 125 251 . 1905 . 598 Lost Part 317 | . . 25 . 18 . 264 . 10 Lost Ally 203 | . . . . . . 143 . 60 Squads Dispatched 39 | . . . . . . 30 . 9 Investigation 9 | . . . . . . 6 . 3 Extermination 15 | . . . . . . 10 . 5 Reinforcement 7 | . . . . . . 6 . 1 Assault . | . . . . . . . . . Garrison 8 | . . . . . . 8 . . Intercept . | . . . . . . . . . Searches Triggered . | . . . . . . . . . Construction Impeded . | . . . . . . . . . Haulers Reinforced 2 | . . . . . . 2 . . Active Scanning Responses . | . . . . . . . . . Cargo Convoy Interrupts 1 | . . . . . . . . 1 Stealth | -11 -10 -10 -10 -8 -8 -6 -6 -6 --------- Run | Yrd Mat Min Sub Rec Scr Fac Was Fac Distress Signals 7 | . . 1 . . . 3 . 3 Communications Jammed . | . . . . . . . . . Distress Signals . | . . . . . . . . . Times Spotted 164 | . 8 10 10 9 . 93 2 32 Peak Tracking Total 6 | . 2 2 4 5 . 6 1 6 Tactical Retreats 10 | . . . 2 . . 4 . 4 Traps | -11 -10 -10 -10 -8 -8 -6 -6 -6 ------- Run | Yrd Mat Min Sub Rec Scr Fac Was Fac Traps Triggered 15 | . 2 . 1 . . 11 . 1 Indirectly . | . . . . . . . . . Trap Hack Attempts . | . . . . . . . . . Triggered . | . . . . . . . . . Disarmed . | . . . . . . . . . Reprogrammed . | . . . . . . . . . Reused . | . . . . . . . . . Traps Extracted . | . . . . . . . . . Installed . | . . . . . . . . . Triggered . | . . . . . . . . . Machines | -11 -10 -10 -10 -8 -8 -6 -6 -6 ---------- Run | Yrd Mat Min Sub Rec Scr Fac Was Fac Machines Disabled 9 | . . . 1 . . 8 . . Max in Single Turn 4 | . . . 1 . . 4 . . Machines Repaired . | . . . . . . . . . Machines Dismantled . | . . . . . . . . . Machines Sabotaged . | . . . . . . . . . Overloaded Fab Kills . | . . . . . . . . . Hacking | -11 -10 -10 -10 -8 -8 -6 -6 -6 --------- Run | Yrd Mat Min Sub Rec Scr Fac Was Fac Machines Accessed 50 | . . . 2 11 . 20 . 17 Terminals 19 | . . . . 6 . 7 . 6 Fabricators 5 | . . . . . . 4 . 1 Repair Stations 4 | . . . . . . 1 . 3 Recycling Units 12 | . . . . 5 . 2 . 5 Scanalyzers 5 | . . . . . . 3 . 2 Garrison Access 3 | . . . . . . 3 . . Total Hacks 129 | . . . 4 24 . 52 . 49 Successful 90 | . . . 4 22 . 31 . 33 Failed 39 | . . . . 2 . 21 . 16 Catastrophic 2 | . . . . . . 2 . . Database Lockouts . | . . . . . . . . . Manual 34 | . . . . 12 . 11 . 11 Terminals 48 | . . . . 13 . 21 . 14 Fabricators 15 | . . . . . . 11 . 4 Repair Stations 12 | . . . . . . 3 . 9 Recycling Units 27 | . . . . 11 . 5 . 11 Scanalyzers 19 | . . . . . . 8 . 11 Garrison Access 4 | . . . . . . 4 . . Terminal Hacks 21 | . . . 4 5 . 7 . 5 Record 3 | . . . 3 . . . . . Part Schematic 11 | . . . . 4 . 5 . 2 Robot Schematic 3 | . . . . . . 1 . 2 Robot Analysis 3 | . . . . 1 . 1 . 1 Proto ID Catalog 1 | . . . 1 . . . . . Fabricator Hacks 12 | . . . . . . 8 . 4 Network Status 1 | . . . . . . 1 . . Load Schematic 4 | . . . . . . 2 . 2 Build 7 | . . . . . . 5 . 2 Repair Station Hacks 9 | . . . . . . 2 . 7 Scan Component 5 | . . . . . . 1 . 4 Repair 4 | . . . . . . 1 . 3 Recycling Unit Hacks 12 | . . . . 5 . 2 . 5 Retrieve Components 12 | . . . . 5 . 2 . 5 Scanalyzer 10 | . . . . . . 4 . 6 Insert Component 3 | . . . . . . . . 3 Analyze 1 | . . . . . . . . 1 Retrieve Study 6 | . . . . . . 4 . 2 Garrison Access Hacks . | . . . . . . . . . Unauthorized Hacks 25 | . . . . 11 . 8 . 6 Terminals 14 | . . . . 6 . 3 . 5 Assimilate 2 | . . . . . . . . 2 Botnet 12 | . . . . 6 . 3 . 3 Fabricators . | . . . . . . . . . Repair Stations . | . . . . . . . . . Recycling Units 8 | . . . . 5 . 2 . 1 Reject 8 | . . . . 5 . 2 . 1 Scanalyzers . | . . . . . . . . . Garrison Access 3 | . . . . . . 3 . . Reprogram 3 | . . . . . . 3 . . Data Cores Recovered . | . . . . . . . . . Used . | . . . . . . . . . Hacking Detections 31 | . . . . 5 . 14 . 12 Full Trace Events 9 | . . . . 2 . 4 . 3 Feedback Events 2 | . . . . . . 1 . 1 Corruption 2 | . . . . . . 1 . 1 Feedback Blocked . | . . . . . . . . . Robot Schematics Acquired 3 | . . . . . . 1 . 2 Robots Built 4 | . . . . . . 4 . . Authchips . | . . . . . . . . . Time 67 | . . . . . . 67 . . Total Robot Build Rating 16 | . . . . . . 16 . . Part Schematics Acquired 12 | . . . . 4 . 5 . 3 Parts Built 10 | . . . . . . 6 . 4 Authchips . | . . . . . . . . . Time 448 | . . . . . . 258 . 190 Total Part Build Rating 48 | . . . . . . 28 . 20 Part Studies Acquired 6 | . . . . . . 4 . 2 Parts Repaired 4 | . . . . . . 1 . 3 Time 195 | . . . . . . 50 . 145 Parts Recycled . | . . . . . . . . . Recycled Matter . | . . . . . . . . . Retrieved Matter . | . . . . . . . . . Retrieved Components 36 | . . . . 17 . 12 . 7 Parts Scanalyzed 2 | . . . . . . . . 2 Part Schematics Acquired 1 | . . . . . . . . 1 Parts Damaged . | . . . . . . . . . Bothacking | -11 -10 -10 -10 -8 -8 -6 -6 -6 ------------ Run | Yrd Mat Min Sub Rec Scr Fac Was Fac Used RIF Installer . | . . . . . . . . . Robots Hacked . | . . . . . . . . . Non-combat . | . . . . . . . . . Combat . | . . . . . . . . . Robot Hacks Applied . | . . . . . . . . . Relay Couplers Released 7 | . . . . . . 7 . . Programmers 7 | . . . . . . 7 . . Fabnet Peak Effective % . | . . . . . . . . . Robots Rewired 14 | . . . . 14 . . . . Allies Hacked . | . . . . . . . . . Hacks Repelled . | . . . . . . . . . Allies | -11 -10 -10 -10 -8 -8 -6 -6 -6 -------- Run | Yrd Mat Min Sub Rec Scr Fac Was Fac Total Allies 26 | . . 2 . 14 . 8 . 2 Largest Group 12 | . . 2 2 12 12 11 . 1 Highest-Rated Group 164 | . . 42 42 164 164 133 . 26 Highest-Rated Ally 31 | . . 31 31 31 31 29 . 26 Total Orders . | . . . . . . . . . Ally Attacks 102 | . . 10 3 23 . 66 . . Total Damage 1401 | . . 105 43 293 . 960 . . Kills 9 | . . 3 . 2 . 4 . . Allies Corrupted . | . . . . . . . . . Allies Melted 1 | . . . . . . 1 . . Intel | -11 -10 -10 -10 -8 -8 -6 -6 -6 ------- Run | Yrd Mat Min Sub Rec Scr Fac Was Fac Active Infowar (turns) 10829 | . 707 569 1940 1732 1049 3530 . 1302 Sensors 2538 | . . . . . . 1322 . 1216 Terrain 1528 | . . . . . . 1086 . 442 Structural 8013 | . 707 569 1940 1732 1049 2016 . . Machine Analysis 1302 | . . . . . . . . 1302 Jamming 126 | . . . . . . . . 126 Robot Analysis Total 3 | . . . . 1 . 1 . 1 Derelict Logs Recovered 3 | . . 1 1 . 1 . . . Drone Launches 10 | . . . . . . . . 10 Drone Recoveries 2 | . . . . . . . . 2 Exploration | -11 -10 -10 -10 -8 -8 -6 -6 -6 ------------- Run | Yrd Mat Min Sub Rec Scr Fac Was Fac Turns Passed 14311 | 77 1064 569 2725 2080 1049 4594 786 1367 Spaces Moved 10884 | 58 814 777 2170 1060 743 2818 531 1913 Core 32 | 24 4 . . . . . 4 . Treads 580 | . . . . . . 579 1 . Legs . | . . . . . . . . . Wheels 1017 | 34 810 173 . . . . . . Hover 1144 | . . . . . . 1144 . . Flight 8111 | . . 604 2170 1060 743 1095 526 1913 Fastest Speed 23 | 50 80 34 34 114 114 23 24 23 Average Speed 90 | 75 80 44 83 143 114 112 132 37 Slowest Speed 240 | 100 200 117 114 194 114 240 240 97 Overloaded Moves . | . . . . . . . . . Propulsion Burnouts . | . . . . . . . . . Robots Hopped 15 | . . 10 . . . . . 5 Potential Cave-ins . | . . . . . . . . . Cave-ins Triggered . | . . . . . . . . . Exploration Rate (%) 72 | 3 97 98 95 99 55 64 96 44 Regions Visited 8 Branch Regions 4 Pre-discovered Areas 1 | . . . 1 . . . . . Known Exits Taken 6 | 1 1 1 1 1 1 . . . Unknown Exits Taken . | . . . . . . . . . Scrap Searched 12 | . . . 8 . 4 . . . Spaces Dug 31 | . . . 1 . . 27 . 3 Terrain Destroyed 47 | . . . 6 2 . 36 . 3 Melee 1 | . . . . . . 1 . . Projectile 22 | . . . 6 2 . 11 . 3 AOE 24 | . . . . . . 24 . . Terrain Rammed . | . . . . . . . . . Walls Destroyed . | . . . . . . . . . Machines Disabled . | . . . . . . . . . Actions | -11 -10 -10 -10 -8 -8 -6 -6 -6 --------- Run | Yrd Mat Min Sub Rec Scr Fac Was Fac Total 14560 | 79 1167 920 2988 1597 946 3791 596 2476 Wait 2594 | . 295 93 720 391 197 461 7 430 Move 10848 | 57 813 757 2169 1059 742 2818 530 1903 Hop 14 | . . 9 . . . . . 5 Pick Up 97 | 9 12 5 11 4 4 23 15 14 Fast Attach 106 | . 6 . 2 4 . 62 11 21 Attach 54 | 7 2 5 2 3 . 23 5 7 Detach 10 | . . 1 1 . . 6 1 1 Swap 47 | . 3 5 11 1 . 21 1 5 Drop 109 | . 7 6 15 6 3 51 8 13 Fire 499 | 6 29 38 56 35 . 261 11 63 Melee 4 | . . . . . . 4 . . Ram 7 | . . 1 1 2 . 2 . 1 Kick . | . . . . . . . . . Crush . | . . . . . . . . . Escape Stasis 59 | . . . . . . 59 . . Rewire 109 | . . . . 92 . . 7 10 Trap . | . . . . . . . . . Miscellaneous 3 | . . . . . . . . 3 Route ------- -11/Scrapyard -10/Materials (discovered 4 exits: *Mat x3 / *Min) -10/Mines (discovered 4 exits: *Mat x2 / Exi / *Sub) -10/Subcaves (discovered 3 exits: *Mat x2 / *Rec) -8/Recycling (discovered 2 exits: *Fac / *Scr) -8/Scraptown -6/Factory (discovered 5 exits: *Fac x3 / *Low x2) -6/Waste -6/Factory (discovered 3 exits: *Fac / *Low x2) History --------- Turn | Location | Event 3 | -11/Scrapyard | Identified exit to Materials 3 | -11/Scrapyard | Discovered exit to Materials (range 15) 78 | -11/Scrapyard | Entered Materials 78 | -10/Materials | Evolved 1 slot: Propulsion x1 229 | -10/Materials | Identified exit to Mines 229 | -10/Materials | Discovered exit to Mines (range 11) 318 | -10/Materials | Build established: Hacker-Mutant 407 | -10/Materials | Identified exit to Materials 407 | -10/Materials | Discovered exit to Materials (range 11) 540 | -10/Materials | Discovered exit to Materials (range 3) 793 | -10/Materials | Discovered exit to Materials (range 15) 1142 | -10/Materials | Entered Mines 1198 | -10/Mines | Discovered exit to Materials (range 11) 1403 | -10/Mines | Identified exit to Subcaves 1403 | -10/Mines | Discovered exit to Subcaves (range 9) 1563 | -10/Mines | Discovered exit to Materials (range 11) 1569 | -10/Mines | Deemed a non-threat by the Exiles lab entrance 1569 | -10/Mines | Identified exit to Exiles 1569 | -10/Mines | Discovered exit to Exiles (range 6) 1711 | -10/Mines | Entered Subcaves 1711 | -10/Subcaves | Accompanied by 2 allies 1716 | -10/Subcaves | Build established: Scavenger-Mutant 1716 | -10/Subcaves | Led the pair of lost Derelicts to an unsafe place 1875 | -10/Subcaves | Identified exit to Materials 1875 | -10/Subcaves | Discovered exit to Materials (range 11) 1931 | -10/Subcaves | Shifting Twisted Machinery released Mak. Kinetic Plating 1956 | -10/Subcaves | Shifting Twisted Machinery released Sub. Optics 2036 | -10/Subcaves | Shifting Twisted Machinery released Sub. Machine Gun 2042 | -10/Subcaves | Shifting Twisted Machinery released Mak. System Restoration Module 2134 | -10/Subcaves | Visited 4L-MR0's lab 2161 | -10/Subcaves | Found Powered Cannon 2163 | -10/Subcaves | Attached Powered Cannon, gained temporary slot: Power 2419 | -10/Subcaves | Identified exit to Recycling 2419 | -10/Subcaves | Discovered exit to Recycling (range 16) 2590 | -10/Subcaves | Shifting Twisted Machinery released Piercing Trap 2592 | -10/Subcaves | Shifting Twisted Machinery released Multitool 2868 | -10/Subcaves | Disturbed a concealed Subdweller 3718 | -10/Subcaves | Discovered exit to Materials (range 13) 3743 | -10/Subcaves | Visited Clippyterm 3747 | -10/Subcaves | Learned 40 Factory zone layouts 4436 | -10/Subcaves | Entered Recycling 4436 | -8/Recycling | Accompanied by 1 ally 4660 | -8/Recycling | Scanned before Scraplab entrance 4673 | -8/Recycling | Identified exit to Scraptown 4673 | -8/Recycling | Discovered exit to Scraptown (range 11) 4676 | -8/Recycling | Entered Scraplab 4977 | -8/Recycling | Core integrity fell below 50% 5348 | -8/Recycling | Identified exit to Factory 5348 | -8/Recycling | Discovered exit to Factory (range 15) 5799 | -8/Recycling | Core integrity fell below 20% 5826 | -8/Recycling | Lost 3 allies 5855 | -8/Recycling | Build established: Commander-Mutant 6516 | -8/Recycling | Entered Scraptown 6516 | -8/Scraptown | Accompanied by 12 allies 6516 | -8/Scraptown | System corruption cleaned by C-Scrubber 6546 | -8/Scraptown | Led the pair of lost Derelicts to a safe place 6640 | -8/Scraptown | Visited Cave Peace 6650 | -8/Scraptown | Visited Red Mages 6699 | -8/Scraptown | Visited Spacefarers 6735 | -8/Scraptown | Visited Cyclists 6756 | -8/Scraptown | Visited Assassins FH 6786 | -8/Scraptown | Visited The Evicted 6795 | -8/Scraptown | Visited Symbiants 6978 | -8/Scraptown | Scanned Subdweller tech in exchange for log data 6982 | -8/Scraptown | Learned Factory stockpile data 6997 | -8/Scraptown | Discovered exit to Factory (range 11) 7565 | -8/Scraptown | Entered Factory 7565 | -6/Factory | Accompanied by 11 allies 7565 | -6/Factory | Evolved 8 slots: Power x1, Propulsion x2, Utility x4, Weapon x1 7566 | -6/Factory | Identified exit to Factory 7566 | -6/Factory | Identified exit to Lower Caves 7938 | -6/Factory | Fabricated S-27 Virus (x4) 7974 | -6/Factory | Fabricated Adv. Weight Redist. System (x2) 8340 | -6/Factory | Allied Derelicts emerged from ambush trap array 8342 | -6/Factory | Build established: Hacker-Skirmisher 8419 | -6/Factory | Spotted B-75 Beast 8423 | -6/Factory | Garrison activated, responded to threat 8450 | -6/Factory | Destroyed B-75 Beast 8486 | -6/Factory | Lost 7 allies 8501 | -6/Factory | Destroyed 7 combat bots 9049 | -6/Factory | Lost 3 parts (2n1w) 9355 | -6/Factory | Build established: Hacker-Tank 9623 | -6/Factory | Lost 4 parts (1n3u) 10106 | -6/Factory | Build established: Scavenger-Mutant 10454 | -6/Factory | Discovered exit to Lower Caves (range 18) 10521 | -6/Factory | Repaired Adv. Terrain Scanner 10860 | -6/Factory | Discovered exit to Factory (range 6) 10869 | -6/Factory | Lost 3 parts (2u1w) 11000 | -6/Factory | Fabricated Hyp. Railgun (x2) 11061 | -6/Factory | Garrison activated, responded to threat 11123 | -6/Factory | Build established: Hacker-Skirmisher 11236 | -6/Factory | Garrison activated, responded to threat 11294 | -6/Factory | Core integrity fell below 50% 11543 | -6/Factory | Lost 5 parts (1n2u2w) 11946 | -6/Factory | Fabricated Adv. Weight Redist. System (x2) 11950 | -6/Factory | Garrison activated, responded to threat 11969 | -6/Factory | Build established: Hacker-Gunner 12159 | -6/Factory | Sucked down chute 12159 | -6/Factory | Entered Waste 12159 | -6/Waste | The area was eerily silent 12431 | -6/Waste | Identified exit to Factory 12431 | -6/Waste | Discovered exit to Factory (range 13) 12538 | -6/Waste | Found Unknown Protection 12869 | -6/Waste | A Compactor rumbled back to life 12884 | -6/Waste | Spotted C-40 Crusher 12893 | -6/Waste | Crushed by Compactor (1 part destroyed, 2 dropped) 12896 | -6/Waste | Crushed by Compactor (1 part destroyed, 2 dropped) 12899 | -6/Waste | Crushed by Compactor (1 part destroyed, 2 dropped) 12902 | -6/Waste | Crushed by Compactor (1 part destroyed, 1 dropped) 12910 | -6/Waste | Crushed by Compactor (1 part destroyed, 1 dropped) 12913 | -6/Waste | Crushed by Compactor (1 part destroyed, 2 dropped) 12914 | -6/Waste | Core integrity fell below 20% 12944 | -6/Waste | Lost 8 parts (1p2n2u3w) 12945 | -6/Waste | Entered Factory 12952 | -6/Factory | Discovered exit to Lower Caves (range 15) 13089 | -6/Factory | Lost 6 allies 13181 | -6/Factory | Discovered exit to Lower Caves (range 16) 13528 | -6/Factory | Build established: Hacker-Skirmisher 13582 | -6/Factory | Repaired Imp. Surge Thruster+ 13623 | -6/Factory | Repaired Cld. Cesium-ion Thruster 13722 | -6/Factory | Lost 6 parts (1p2n1u2w) 13729 | -6/Factory | Discovered exit to Factory (range 11) 13866 | -6/Factory | Repaired F-cell Engine 13913 | -6/Factory | Cargo convoy interrupted 14005 | -6/Factory | Build established: Hacker-Scout 14108 | -6/Factory | Fabricated Lgt. Antimatter Reactor (x2) 14188 | -6/Factory | Fabricated Adv. Weight Redist. System (x2) 14312 | -6/Factory | Destroyed by exploding Fusion Modulator Last Messages --------------- 14293_ Acquired 23 matter. 14296_ Administrator 5b reveals location of Proton Bomb Trap. 14302_ O-24 Administrator: "IFF HANDSHAKE FAILED. SECURING TERMINAL." 14306_ ALERT: Hostiles spotted, dispatching reinforcements to Terminal F013. 14307_ >> Machine Analyzer network decryption results: 14307_ Terminal x1 14308_ Acquired 139 matter. 14312_ Triggered Proton Bomb Trap. 14312_ A bubble of electromagnetic force engulfs the area. 14312_ Fusion Modulator explodes. 14312_ Proton Bomb Trap short circuited. 14312_ A bubble of electromagnetic force engulfs the area. 14312_ EM Disruption Field destroyed. 14312_ Fusion Modulator explodes. Map ----- +----------------------------------------------------+ | ????????????????????????#########+#### #??? | | ????????????????????????# # #??? | | ?"""????????????????????# """"""""" # #??? | | ?"T?????????????????????# !# #??? | | ?"""??"""???????????????# """"""""" # #??? | | ??????"""??????????????## # #??? | | ??????"""??????????????#""#########+## ???? | | ????????????##??#########"##? ???????????? | | ????????????# """""" #? ???????????? | | ????????????# """""" # ????????????? | | ????????????# """""" # #????????????? | | ????????????# """""" # #????????????? | | ????????????+ + #????????????? | | ????????????# # #??""""?""""?? | | ????????????######+######### ##?""""?""""?? | | ???????########??# #??????# /#?""""?""""?? | | ???????# # ######## "" #?""""?""""?? | | ???????# ] + g= T +?""""?""""?? | | ???????# ! #g######## #?""""?""""?? | | ???????# ??#l#? # #???????????? | | ?????# ########### #? #######???????????? | | ?????# #? #?????????????????? | | ??######## ;# #?????????????????? | | ??# # R;;;;;;;##????????????????? | | ??# # #????????????????? | | ??# """ # @ #????????????????? | | ??# """ + +????????????????? | | ??# """ # #????????????????? | | ??# # #????????????????? | | ??######### #????????????????? | | ??????????# #????????????????? | | ??"""?"""?+ #????????????????? | | ??"""?""" # ^ #??????????????""" | | ??"""?""" # #????????????""""" | | ??????????# """ """ #????????????""""" | | ???????o??# "" """ """ #????????????????? | | ????""T""?#""" """ """ #??????????????""" | | ????"""""?#"F ? #????????????""""" | | ??????????#""" ??? #????????????""""" | | ??????????# "" ???? ???????????????????? | | ?????????????? ?????????????????????????? | | ?????????????? ??????????????????????????? | | ??????????????####??????????????????????????? | | ????????????????????????H???????????????????? | | ????????????????????????????????????????????? | | ????????????????????????????????????????????? | | ????????????????????????????????????????????? | | ????????????????????????????????????????????? | | ????????????????????????????????????????????? | | ????????????????????????????????????????????? | +----------------------------------------------------+ Best States ------------- Heat Dissipation 75 Coolant Potential 65 Energy Generation 41 Energy Capacity 710 Matter Stores 300 Matter Capacity 300 Sight Range 16 Robot Scan Range 16 Terrain Scan Range 20 Terrain Scan Density 210 Jamming Range 12 Additional Mass Support 9 Base Temperature (-) 150 Corruption Containment 8 Armor Coverage 225 Resistance: KI 35 Resistance: TH 35 Resistance: EX 35 Resistance: EM 60 Resistance: I 35 Resistance: S 35 Resistance: P 35 Evasion (%) 65 Targeting Accuracy 5 Armor Integrity Analysis 40 Recoil Reduction 2 Matter Filtering 50 Offensive Hacking 44 Defensive Hacking 10 Item Schematics ----------------- Adv. Weight Redist. System | -8/Recycling | Hacked Hvy. Laser | -8/Recycling | Hacked Power Amplifier | -8/Recycling | Hacked Shock Rifle | -8/Recycling | Hacked Lgt. Antimatter Reactor | -6/Factory | Hacked Adv. Shield Generator | -6/Factory | Hacked Fission Core | -6/Factory | Hacked Hyp. Mass Driver | -6/Factory | Hacked Imp. Heavy Treads | -6/Factory | Hacked Force Field | -6/Factory | Hacked Huge Storage Unit | -6/Factory | Scanalyzed Adv. Focal Shield | -6/Factory | Hacked Robot Schematics ------------------ R-06 Scavenger | -6/Factory | Hacked G-50 Soldier | -6/Factory | Hacked M-22 Extractor | -6/Factory | Hacked Fabricated ------------ S-27 Virus | x4 | -6/Factory | Preloaded Adv. Weight Redist. System | x2 | -6/Factory Hyp. Railgun | x2 | -6/Factory | Preloaded Adv. Weight Redist. System | x2 | -6/Factory Lgt. Antimatter Reactor | x2 | -6/Factory Adv. Weight Redist. System | x2 | -6/Factory Repaired ---------- Adv. Terrain Scanner | 12% | -6/Factory Imp. Surge Thruster | 12% | -6/Factory Cld. Cesium-ion Thruster | 6% | -6/Factory F-cell Engine | 14% | -6/Factory Studied --------- Xenon Bombardment Thruster | -6/Factory | Hacked Imp. Gravmag System | -6/Factory | Hacked Rnf. Deuterium Engine | -6/Factory | Hacked Imp. Remote Datajack | -6/Factory | Hacked Imp. Surge Thruster | -6/Factory | Hacked Nuclear Pulse Thruster | -6/Factory | Hacked Alien Tech Used ----------------- None Achievements -------------- None Challenges ------------ None Game ------ Seed ColdUtilityClaws Manual? 0 Play Time 01:41:21 Cumulative 200.4 hours Start 2025.12.15 @ 11:44:24 End 2025.12.15 @ 13:24:06 Sessions 1 Manual Loads 0 Difficulty Explorer Special Mode None Game No. 297 Rogue 0 Adventurer 0 Explorer 297 Win Type - Total 0 Types 0/0/0/0/0/0/0/0/0/0 Lore% 71 Gallery% 67 Achievement% 53 Wizard Run 0 Options --------- Layout 1 ASCII 0 Keyboard 0 Movement Mouse Keybinds 0 Fullscreen 1 Font 24/Smallcaps Map View 50x35 Zoom Use 0% Tactical HUD 1 Map Filters NONE Filters NONE Steam 1 RUN: df5128fb-c258-4086-97f7-f3d05949dde5